[Event "Late-Titled-Tuesday-Blitz-December-26-2023"]
[Site "Chess.com"]
[Date "2023.12.26"]
[Round "2"]
[White "MelihKaanCan"]
[Black "dcremisi"]
[Result "0-1"]
[WhiteElo "2367"]
[BlackElo "2679"]
[TimeControl "180+1"]
[EndTime "14:16:48 PST"]
[Termination "dcremisi won on time"]

1. e4 {[%clk 0:03:00.9]} 1... e6 {[%clk 0:02:59.6]} 2. d4 {[%clk 0:03:00.3]}
2... d5 {[%clk 0:02:59.7]} 3. Nd2 {[%clk 0:03:01]} 3... a6 {[%clk 0:02:59.8]} 4.
e5 {[%clk 0:02:54.9]} 4... Bd7 {[%clk 0:02:59.4]} 5. Ngf3 {[%clk 0:02:42.1]}
5... c5 {[%clk 0:02:58.9]} 6. c3 {[%clk 0:02:30.1]} 6... h6 {[%clk 0:02:58.9]}
7. Bd3 {[%clk 0:02:27.9]} 7... Bb5 {[%clk 0:02:58.8]} 8. Bxb5+ {[%clk
0:02:22.4]} 8... axb5 {[%clk 0:02:59]} 9. dxc5 {[%clk 0:02:22.5]} 9... Bxc5
{[%clk 0:02:58.9]} 10. b4 {[%clk 0:02:22]} 10... Bb6 {[%clk 0:02:58.2]} 11. Nb3
{[%clk 0:02:19.6]} 11... Ne7 {[%clk 0:02:58]} 12. O-O {[%clk 0:02:19.7]} 12...
O-O {[%clk 0:02:58.1]} 13. Nfd4 {[%clk 0:02:16.1]} 13... Qd7 {[%clk 0:02:52.7]}
14. Qe2 {[%clk 0:02:15.1]} 14... Rc8 {[%clk 0:02:46.9]} 15. Bd2 {[%clk
0:02:13.2]} 15... Rc4 {[%clk 0:02:44.7]} 16. Kh1 {[%clk 0:02:02.3]} 16... Nbc6
{[%clk 0:02:37.1]} 17. Nxb5 {[%clk 0:01:40.3]} 17... Nxe5 {[%clk 0:02:36]} 18.
a4 {[%clk 0:01:32.8]} 18... Re4 {[%clk 0:02:26.4]} 19. Qh5 {[%clk 0:01:24.1]}
19... Nc4 {[%clk 0:02:22]} 20. Qf3 {[%clk 0:00:52.6]} 20... Nf5 {[%clk
0:02:12.3]} 21. Rfd1 {[%clk 0:00:50.7]} 21... Nb2 {[%clk 0:02:00.8]} 22. Re1
{[%clk 0:00:48.2]} 22... Rxa4 {[%clk 0:01:58.2]} 23. Rxa4 {[%clk 0:00:43.2]}
23... Nxa4 {[%clk 0:01:56.8]} 24. N5d4 {[%clk 0:00:23.8]} 24... Nxd4 {[%clk
0:01:52.2]} 25. cxd4 {[%clk 0:00:21.9]} 25... Qb5 {[%clk 0:01:46.9]} 26. Kg1
{[%clk 0:00:13.6]} 26... Qc4 {[%clk 0:01:35.9]} 27. Nc5 {[%clk 0:00:08.2]} 27...
Rxe1+ {[%clk 0:01:34.3]} 28. Bxe1 {[%clk 0:00:07.5]} 28... Qxd4 {[%clk
0:01:24.5]} 29. Nxa4 {[%clk 0:00:05.6]} 29... Qa1 {[%clk 0:01:24.4]} 30. Qe2
{[%clk 0:00:02.9]} 30... Qxa4 {[%clk 0:01:22.8]} 31. g4 {[%clk 0:00:03.4]} 31...
Qb3 {[%clk 0:01:17.7]} 32. Kg2 {[%clk 0:00:02.9]} 32... Qc4 {[%clk 0:01:17.2]}
33. Qf3 {[%clk 0:00:02.2]} 33... Qe4 {[%clk 0:01:16.9]} 34. Bd2 {[%clk
0:00:01.8]} 34... f5 {[%clk 0:01:13.3]} 35. gxf5 {[%clk 0:00:01.3]} 35... exf5
{[%clk 0:01:13.3]} 36. Qxe4 {[%clk 0:00:01.1]} 36... dxe4 {[%clk 0:01:13.3]} 0-1

[Event "Late-Titled-Tuesday-Blitz-December-26-2023"]
[Site "Chess.com"]
[Date "2023.12.26"]
[Round "2"]
[White "Kiborg95"]
[Black "pedromartinez91"]
[Result "1-0"]
[WhiteElo "2825"]
[BlackElo "2541"]
[TimeControl "180+1"]
[EndTime "14:16:52 PST"]
[Termination "Kiborg95 won by resignation"]

1. e4 {[%clk 0:02:53.7]} 1... c5 {[%clk 0:02:57.1]} 2. Nc3 {[%clk 0:02:53.7]}
2... Nc6 {[%clk 0:02:56.9]} 3. Nge2 {[%clk 0:02:54.1]} 3... g6 {[%clk
0:02:56.9]} 4. d4 {[%clk 0:02:54.7]} 4... c4 {[%clk 0:02:56.7]} 5. d5 {[%clk
0:02:49.5]} 5... Na5 {[%clk 0:02:53]} 6. Qd4 {[%clk 0:02:42.8]} 6... Nf6 {[%clk
0:02:39.1]} 7. e5 {[%clk 0:02:39.4]} 7... Nh5 {[%clk 0:02:39.2]} 8. g4 {[%clk
0:02:10.4]} 8... Ng7 {[%clk 0:02:38.6]} 9. h3 {[%clk 0:01:43.1]} 9... h5 {[%clk
0:02:36.4]} 10. Bg2 {[%clk 0:01:34.9]} 10... d6 {[%clk 0:02:26.1]} 11. exd6
{[%clk 0:01:35.2]} 11... Qxd6 {[%clk 0:02:25.8]} 12. Bf4 {[%clk 0:01:35.3]}
12... Qb4 {[%clk 0:02:20.8]} 13. O-O-O {[%clk 0:01:19.3]} 13... Qb6 {[%clk
0:01:57]} 14. Qxb6 {[%clk 0:00:54.3]} 14... axb6 {[%clk 0:01:57.9]} 15. Nb5
{[%clk 0:00:54.8]} 15... Kd7 {[%clk 0:01:54.8]} 16. Nec3 {[%clk 0:00:48]} 16...
Ne8 {[%clk 0:01:51.2]} 17. Na4 {[%clk 0:00:47.1]} 17... Ra6 {[%clk 0:01:50.1]}
18. Be3 {[%clk 0:00:47.2]} 18... Nc7 {[%clk 0:01:43.1]} 19. Nbc3 {[%clk
0:00:41.6]} 19... Na8 {[%clk 0:01:36.5]} 20. Bd4 {[%clk 0:00:32.6]} 20... Rh7
{[%clk 0:01:30.7]} 21. Be4 {[%clk 0:00:30.2]} 21... Bh6+ {[%clk 0:01:27.9]} 22.
Kb1 {[%clk 0:00:29.9]} 22... Bf4 {[%clk 0:01:28.1]} 23. Rhe1 {[%clk 0:00:26.2]}
23... Bd6 {[%clk 0:01:27.7]} 24. Nb5 {[%clk 0:00:22.9]} 24... Bf4 {[%clk
0:01:10.5]} 25. f3 {[%clk 0:00:20.3]} 25... Kd8 {[%clk 0:01:02.5]} 26. d6 {[%clk
0:00:19.3]} 26... Bd7 {[%clk 0:01:00]} 27. dxe7+ {[%clk 0:00:19.2]} 27... Kxe7
{[%clk 0:01:00.5]} 28. Bxb7+ {[%clk 0:00:12.6]} 28... Be6 {[%clk 0:00:57.1]} 29.
Bxa6 {[%clk 0:00:12.7]} 29... Nc6 {[%clk 0:00:56.9]} 30. Bc3 {[%clk 0:00:12.5]}
30... hxg4 {[%clk 0:00:56]} 31. hxg4 {[%clk 0:00:12.7]} 31... Rh8 {[%clk
0:00:51.7]} 32. Bb7 {[%clk 0:00:13.1]} 32... Ne5 {[%clk 0:00:48.8]} 33. Bxe5
{[%clk 0:00:13.1]} 33... Bxe5 {[%clk 0:00:49.1]} 34. Rxe5 {[%clk 0:00:13.8]} 1-0

[Event "Late-Titled-Tuesday-Blitz-December-26-2023"]
[Site "Chess.com"]
[Date "2023.12.26"]
[Round "2"]
[White "Predator0608"]
[Black "Genghis_K"]
[Result "0-1"]
[WhiteElo "2547"]
[BlackElo "2859"]
[TimeControl "180+1"]
[EndTime "14:16:54 PST"]
[Termination "Genghis_K won by resignation"]

1. e4 {[%clk 0:03:00.9]} 1... c5 {[%clk 0:02:50.2]} 2. Nf3 {[%clk 0:03:00.6]}
2... d6 {[%clk 0:02:50.5]} 3. d4 {[%clk 0:03:00.8]} 3... cxd4 {[%clk 0:02:51.2]}
4. Nxd4 {[%clk 0:03:01.4]} 4... Nf6 {[%clk 0:02:51.9]} 5. Nc3 {[%clk 0:03:01.6]}
5... a6 {[%clk 0:02:52.7]} 6. Be3 {[%clk 0:03:01.1]} 6... Ng4 {[%clk 0:02:51.6]}
7. Bg5 {[%clk 0:03:00.6]} 7... h6 {[%clk 0:02:50.2]} 8. Bh4 {[%clk 0:03:00.5]}
8... g5 {[%clk 0:02:51]} 9. Bg3 {[%clk 0:02:59.7]} 9... Bg7 {[%clk 0:02:51.7]}
10. Be2 {[%clk 0:02:58.4]} 10... h5 {[%clk 0:02:50.9]} 11. h3 {[%clk 0:02:57]}
11... h4 {[%clk 0:02:28]} 12. hxg4 {[%clk 0:02:39.3]} 12... hxg3 {[%clk
0:02:27.3]} 13. Rxh8+ {[%clk 0:02:40.2]} 13... Bxh8 {[%clk 0:02:27.2]} 14. fxg3
{[%clk 0:02:41.1]} 14... Nc6 {[%clk 0:02:19.9]} 15. Nf5 {[%clk 0:02:37.1]} 15...
Qb6 {[%clk 0:02:16.4]} 16. Nd5 {[%clk 0:02:32.4]} 16... Qg1+ {[%clk 0:01:43.2]}
17. Bf1 {[%clk 0:02:28.5]} 17... Bxf5 {[%clk 0:01:39.3]} 18. gxf5 {[%clk
0:02:25.4]} 18... Bxb2 {[%clk 0:01:20.8]} 19. Rb1 {[%clk 0:02:23.5]} 19... Bd4
{[%clk 0:01:18.3]} 20. Qd2 {[%clk 0:02:12.7]} 20... Rb8 {[%clk 0:01:10.4]} 21.
c3 {[%clk 0:02:05.4]} 21... Be5 {[%clk 0:01:09.9]} 22. Qxg5 {[%clk 0:02:04.4]}
22... Qc5 {[%clk 0:00:52.2]} 23. Qg8+ {[%clk 0:01:05.3]} 23... Kd7 {[%clk
0:00:51.1]} 24. Qxf7 {[%clk 0:01:03.5]} 24... Bxc3+ {[%clk 0:00:38.7]} 25. Ke2
{[%clk 0:00:41.1]} 25... Qc4+ {[%clk 0:00:35.1]} 26. Ke3 {[%clk 0:00:35.5]}
26... Qd4+ {[%clk 0:00:29.9]} 27. Ke2 {[%clk 0:00:24.7]} 27... Qd2+ {[%clk
0:00:28.4]} 0-1

[Event "Late-Titled-Tuesday-Blitz-December-26-2023"]
[Site "Chess.com"]
[Date "2023.12.26"]
[Round "2"]
[White "AkatsukiLogHorizon"]
[Black "venturov"]
[Result "0-1"]
[WhiteElo "2205"]
[BlackElo "2476"]
[TimeControl "180+1"]
[EndTime "14:16:59 PST"]
[Termination "venturov won by resignation"]

1. e4 {[%clk 0:03:00.9]} 1... Nf6 {[%clk 0:02:59.5]} 2. e5 {[%clk 0:03:00.3]}
2... Nd5 {[%clk 0:02:59]} 3. c4 {[%clk 0:02:58.6]} 3... Nb6 {[%clk 0:02:59]} 4.
d4 {[%clk 0:02:58.7]} 4... d6 {[%clk 0:02:58.9]} 5. exd6 {[%clk 0:02:58.2]} 5...
cxd6 {[%clk 0:02:58.9]} 6. Nc3 {[%clk 0:02:57.2]} 6... g6 {[%clk 0:02:58.4]} 7.
b3 {[%clk 0:02:56]} 7... Bg7 {[%clk 0:02:58.6]} 8. Nf3 {[%clk 0:02:56.1]} 8...
O-O {[%clk 0:02:59]} 9. Be3 {[%clk 0:02:54]} 9... Bg4 {[%clk 0:02:59.5]} 10. Be2
{[%clk 0:02:53.6]} 10... d5 {[%clk 0:02:59.4]} 11. c5 {[%clk 0:02:52.1]} 11...
Nc8 {[%clk 0:02:59.6]} 12. h3 {[%clk 0:02:51.8]} 12... Bxf3 {[%clk 0:03:00.1]}
13. Bxf3 {[%clk 0:02:51.4]} 13... e6 {[%clk 0:03:01]} 14. b4 {[%clk 0:02:51.2]}
14... Nc6 {[%clk 0:03:01.1]} 15. b5 {[%clk 0:02:45.7]} 15... Na5 {[%clk
0:03:01.4]} 16. O-O {[%clk 0:02:39.3]} 16... Ne7 {[%clk 0:03:00.4]} 17. a4
{[%clk 0:02:37.2]} 17... Nf5 {[%clk 0:02:56.7]} 18. Qd3 {[%clk 0:02:15.2]} 18...
Nb3 {[%clk 0:02:49.8]} 19. Rad1 {[%clk 0:01:49.4]} 19... Nbxd4 {[%clk
0:02:49.2]} 20. Bxd4 {[%clk 0:01:46.5]} 20... Nxd4 {[%clk 0:02:50.1]} 21. Ne2
{[%clk 0:01:45.2]} 21... Nxe2+ {[%clk 0:02:33.7]} 22. Bxe2 {[%clk 0:01:43.8]}
22... Qa5 {[%clk 0:02:33.2]} 23. Qb3 {[%clk 0:01:43]} 23... Rfc8 {[%clk
0:02:32.8]} 24. Rc1 {[%clk 0:01:42.9]} 24... Bd4 {[%clk 0:02:25.9]} 25. c6
{[%clk 0:01:42.9]} 25... bxc6 {[%clk 0:02:24.6]} 26. Rxc6 {[%clk 0:01:35.8]}
26... Rxc6 {[%clk 0:02:20.9]} 27. bxc6 {[%clk 0:01:36.7]} 27... Rc8 {[%clk
0:02:19.3]} 28. Qb5 {[%clk 0:01:22.3]} 28... Qc3 {[%clk 0:01:55.5]} 29. Rd1
{[%clk 0:01:11.3]} 29... Bb6 {[%clk 0:01:48.3]} 30. Rb1 {[%clk 0:00:47.5]} 30...
Qxc6 {[%clk 0:01:45.6]} 31. a5 {[%clk 0:00:44.7]} 31... Qxb5 {[%clk 0:01:30.3]}
32. Rxb5 {[%clk 0:00:43.1]} 32... Rc1+ {[%clk 0:01:22.7]} 33. Bf1 {[%clk
0:00:43.5]} 33... Bd4 {[%clk 0:01:21.5]} 34. Rb4 {[%clk 0:00:41.2]} 34... Bc3
{[%clk 0:01:15.5]} 35. Rb8+ {[%clk 0:00:41.1]} 35... Kg7 {[%clk 0:01:15.5]} 36.
a6 {[%clk 0:00:42]} 36... Bd4 {[%clk 0:01:08.5]} 37. Rb4 {[%clk 0:00:40.6]}
37... Bb6 {[%clk 0:01:03]} 38. g3 {[%clk 0:00:35.9]} 38... Rc2 {[%clk
0:00:57.7]} 39. h4 {[%clk 0:00:24.7]} 39... Bxf2+ {[%clk 0:00:51.1]} 0-1

[Event "Late-Titled-Tuesday-Blitz-December-26-2023"]
[Site "Chess.com"]
[Date "2023.12.26"]
[Round "2"]
[White "YurasovMat-2012"]
[Black "baag"]
[Result "0-1"]
[WhiteElo "2541"]
[BlackElo "2829"]
[TimeControl "180+1"]
[EndTime "14:17:03 PST"]
[Termination "baag won on time"]

1. e4 {[%clk 0:03:00.9]} 1... c6 {[%clk 0:02:57.1]} 2. Nf3 {[%clk 0:03:00]} 2...
d5 {[%clk 0:02:58]} 3. d3 {[%clk 0:02:55.5]} 3... dxe4 {[%clk 0:02:57.6]} 4.
dxe4 {[%clk 0:02:55.6]} 4... Qxd1+ {[%clk 0:02:58.5]} 5. Kxd1 {[%clk 0:02:56]}
5... Nf6 {[%clk 0:02:59.4]} 6. Nbd2 {[%clk 0:02:55.2]} 6... g6 {[%clk
0:02:45.3]} 7. h3 {[%clk 0:02:52.9]} 7... Bh6 {[%clk 0:02:44.2]} 8. b3 {[%clk
0:02:49.2]} 8... O-O {[%clk 0:02:41.7]} 9. Bb2 {[%clk 0:02:49.1]} 9... Rd8
{[%clk 0:02:40.9]} 10. Ke1 {[%clk 0:02:47.2]} 10... a5 {[%clk 0:02:31.6]} 11. a3
{[%clk 0:02:46.4]} 11... Na6 {[%clk 0:02:29.3]} 12. e5 {[%clk 0:02:27.6]} 12...
Nd5 {[%clk 0:02:25.7]} 13. g3 {[%clk 0:02:24.4]} 13... Nc5 {[%clk 0:02:21.2]}
14. Bg2 {[%clk 0:02:21.2]} 14... Bf5 {[%clk 0:02:21.5]} 15. Rc1 {[%clk
0:02:09.1]} 15... Ne4 {[%clk 0:02:08.9]} 16. Bf1 {[%clk 0:01:00.3]} 16... Nxd2
{[%clk 0:01:53.2]} 17. Nxd2 {[%clk 0:01:00.4]} 17... Nb4 {[%clk 0:01:54]} 18. f4
{[%clk 0:00:47.9]} 18... Nxc2+ {[%clk 0:01:49.2]} 19. Ke2 {[%clk 0:00:48.1]}
19... Nd4+ {[%clk 0:01:32.3]} 20. Ke3 {[%clk 0:00:47.7]} 20... Nc2+ {[%clk
0:01:22.7]} 21. Ke2 {[%clk 0:00:37.9]} 21... Bd3+ {[%clk 0:01:12.4]} 22. Kf3
{[%clk 0:00:35.3]} 22... Nd4+ {[%clk 0:00:52.8]} 23. Bxd4 {[%clk 0:00:33.3]}
23... Rxd4 {[%clk 0:00:53.7]} 24. Ke3 {[%clk 0:00:23.6]} 24... Rad8 {[%clk
0:00:54.2]} 25. Nf3 {[%clk 0:00:16.9]} 25... R4d5 {[%clk 0:00:54.6]} 26. Rd1
{[%clk 0:00:08.2]} 26... Be4 {[%clk 0:00:46.5]} 27. Rxd5 {[%clk 0:00:05.3]}
27... Bxd5 {[%clk 0:00:47.4]} 28. Bc4 {[%clk 0:00:05]} 28... e6 {[%clk
0:00:43.7]} 29. Rd1 {[%clk 0:00:04.3]} 29... Bf8 {[%clk 0:00:44.4]} 30. a4
{[%clk 0:00:01.9]} 30... Bc5+ {[%clk 0:00:42.9]} 0-1

[Event "Late-Titled-Tuesday-Blitz-December-26-2023"]
[Site "Chess.com"]
[Date "2023.12.26"]
[Round "2"]
[White "thesupera12"]
[Black "morte-negra"]
[Result "1-0"]
[WhiteElo "2406"]
[BlackElo "1997"]
[TimeControl "180+1"]
[EndTime "14:17:06 PST"]
[Termination "thesupera12 won by resignation"]

1. d4 {[%clk 0:03:00.9]} 1... Nf6 {[%clk 0:02:57.7]} 2. Bg5 {[%clk 0:03:01]}
2... e6 {[%clk 0:02:51.2]} 3. Nf3 {[%clk 0:03:00.3]} 3... c5 {[%clk 0:02:46.5]}
4. e3 {[%clk 0:02:58.1]} 4... Be7 {[%clk 0:02:45.3]} 5. c4 {[%clk 0:02:57.4]}
5... b6 {[%clk 0:02:44.3]} 6. Nc3 {[%clk 0:02:57.4]} 6... O-O {[%clk 0:02:41.7]}
7. Be2 {[%clk 0:02:57.4]} 7... Bb7 {[%clk 0:02:40.5]} 8. O-O {[%clk 0:02:56.6]}
8... d5 {[%clk 0:02:37.3]} 9. Rc1 {[%clk 0:02:53.9]} 9... Nbd7 {[%clk
0:02:29.3]} 10. cxd5 {[%clk 0:02:44.9]} 10... exd5 {[%clk 0:02:28.4]} 11. dxc5
{[%clk 0:02:44.3]} 11... bxc5 {[%clk 0:02:27.6]} 12. Qb3 {[%clk 0:02:41.8]}
12... Rb8 {[%clk 0:02:23.9]} 13. Rfd1 {[%clk 0:02:38.7]} 13... Ba8 {[%clk
0:02:19.1]} 14. Qc2 {[%clk 0:02:35.8]} 14... h6 {[%clk 0:01:48.7]} 15. Bf4
{[%clk 0:02:34]} 15... Rc8 {[%clk 0:01:44.9]} 16. Ba6 {[%clk 0:02:30.5]} 16...
Rc6 {[%clk 0:01:39.5]} 17. Bb5 {[%clk 0:02:29.6]} 17... Rc8 {[%clk 0:01:27]} 18.
h3 {[%clk 0:02:12]} 18... Qb6 {[%clk 0:01:02.9]} 19. Bxd7 {[%clk 0:02:07]} 19...
Nxd7 {[%clk 0:01:00.1]} 20. Nxd5 {[%clk 0:02:04.8]} 20... Bxd5 {[%clk
0:00:57.9]} 21. Rxd5 {[%clk 0:02:05.7]} 21... Nf6 {[%clk 0:00:54.3]} 22. Rdd1
{[%clk 0:02:03.2]} 22... Rfe8 {[%clk 0:00:47.3]} 23. b3 {[%clk 0:01:57.8]} 23...
Bf8 {[%clk 0:00:45.9]} 24. Ne5 {[%clk 0:01:48.4]} 24... Qe6 {[%clk 0:00:34.6]}
25. Qc4 {[%clk 0:01:44.8]} 25... Qf5 {[%clk 0:00:28.8]} 26. Qxf7+ {[%clk
0:01:35.6]} 26... Kh7 {[%clk 0:00:24.6]} 27. Ng4 {[%clk 0:01:18.4]} 27... Re7
{[%clk 0:00:16.8]} 28. Nxf6+ {[%clk 0:00:53.8]} 28... Qxf6 {[%clk 0:00:15.4]}
29. Qxf6 {[%clk 0:00:53.9]} 29... gxf6 {[%clk 0:00:14.8]} 30. Bd6 {[%clk
0:00:54.5]} 30... Rf7 {[%clk 0:00:13.8]} 31. Bxf8 {[%clk 0:00:54]} 31... Rfxf8
{[%clk 0:00:13.2]} 32. Rd5 {[%clk 0:00:53.3]} 32... f5 {[%clk 0:00:10.9]} 33.
Rdxc5 {[%clk 0:00:52.8]} 33... Rxc5 {[%clk 0:00:09]} 34. Rxc5 {[%clk 0:00:53.7]}
34... f4 {[%clk 0:00:08.9]} 35. Rc7+ {[%clk 0:00:53.2]} 35... Kg6 {[%clk
0:00:07.9]} 36. Rxa7 {[%clk 0:00:53.1]} 36... fxe3 {[%clk 0:00:08]} 37. fxe3
{[%clk 0:00:54]} 1-0

[Event "Late-Titled-Tuesday-Blitz-December-26-2023"]
[Site "Chess.com"]
[Date "2023.12.26"]
[Round "2"]
[White "DCacheiro"]
[Black "TheSilmarils"]
[Result "0-1"]
[WhiteElo "2541"]
[BlackElo "2847"]
[TimeControl "180+1"]
[EndTime "14:17:11 PST"]
[Termination "TheSilmarils won by resignation"]

1. e4 {[%clk 0:03:00.9]} 1... c6 {[%clk 0:02:59.6]} 2. d4 {[%clk 0:03:00.4]}
2... d5 {[%clk 0:02:59.8]} 3. e5 {[%clk 0:03:00.9]} 3... Bf5 {[%clk 0:02:59.8]}
4. Nc3 {[%clk 0:03:01.4]} 4... e6 {[%clk 0:02:58.1]} 5. g4 {[%clk 0:03:01.8]}
5... Bg6 {[%clk 0:02:58.4]} 6. Nge2 {[%clk 0:03:02.2]} 6... Nd7 {[%clk
0:02:57.9]} 7. h4 {[%clk 0:03:00.5]} 7... h5 {[%clk 0:02:58.3]} 8. Nf4 {[%clk
0:03:00.7]} 8... Ne7 {[%clk 0:02:59]} 9. Be3 {[%clk 0:02:43]} 9... hxg4 {[%clk
0:02:43.7]} 10. Nxg6 {[%clk 0:02:35.4]} 10... Nxg6 {[%clk 0:02:44.6]} 11. h5
{[%clk 0:02:31.3]} 11... c5 {[%clk 0:02:06.5]} 12. Qxg4 {[%clk 0:02:15]} 12...
cxd4 {[%clk 0:01:41.6]} 13. hxg6 {[%clk 0:01:50.3]} 13... Rxh1 {[%clk
0:01:42.5]} 14. gxf7+ {[%clk 0:01:50.2]} 14... Kxf7 {[%clk 0:01:41.9]} 15. Qf3+
{[%clk 0:01:35.9]} 15... Kg8 {[%clk 0:01:41.1]} 16. Qxh1 {[%clk 0:01:32.4]}
16... dxe3 {[%clk 0:01:26]} 17. O-O-O {[%clk 0:01:18.5]} 17... exf2 {[%clk
0:01:13.3]} 18. Nxd5 {[%clk 0:00:51.3]} 18... Nxe5 {[%clk 0:01:06.3]} 19. Bh3
{[%clk 0:00:26]} 19... exd5 {[%clk 0:00:43]} 20. Be6+ {[%clk 0:00:23.2]} 20...
Nf7 {[%clk 0:00:43.2]} 21. Bxd5 {[%clk 0:00:16.2]} 21... Qf6 {[%clk 0:00:37.1]}
22. Bc4 {[%clk 0:00:14.2]} 22... Re8 {[%clk 0:00:29]} 23. Rf1 {[%clk 0:00:08.4]}
23... Re1+ {[%clk 0:00:20.5]} 24. Rxe1 {[%clk 0:00:04.1]} 24... fxe1=Q+ {[%clk
0:00:21.4]} 25. Qxe1 {[%clk 0:00:03.9]} 25... Qf4+ {[%clk 0:00:22.3]} 0-1

[Event "Late-Titled-Tuesday-Blitz-December-26-2023"]
[Site "Chess.com"]
[Date "2023.12.26"]
[Round "2"]
[White "Romadk"]
[Black "alvarorodriguezavila"]
[Result "1-0"]
[WhiteElo "2496"]
[BlackElo "2282"]
[TimeControl "180+1"]
[EndTime "14:17:25 PST"]
[Termination "Romadk won on time"]

1. d4 {[%clk 0:03:00.9]} 1... Nf6 {[%clk 0:02:59.7]} 2. Nf3 {[%clk 0:03:01.1]}
2... d5 {[%clk 0:02:59.5]} 3. g3 {[%clk 0:03:01.4]} 3... e6 {[%clk 0:02:58]} 4.
Bg2 {[%clk 0:03:02.3]} 4... Be7 {[%clk 0:02:58.3]} 5. c4 {[%clk 0:03:02.9]} 5...
O-O {[%clk 0:02:58.1]} 6. Nc3 {[%clk 0:03:03.8]} 6... dxc4 {[%clk 0:02:54.9]} 7.
Ne5 {[%clk 0:03:04]} 7... c5 {[%clk 0:02:48.8]} 8. dxc5 {[%clk 0:03:02.1]} 8...
Qxd1+ {[%clk 0:02:47.7]} 9. Nxd1 {[%clk 0:03:00.8]} 9... Bxc5 {[%clk 0:02:43.3]}
10. Be3 {[%clk 0:03:00.5]} 10... Bb4+ {[%clk 0:02:37.8]} 11. Bd2 {[%clk
0:03:00.7]} 11... Be7 {[%clk 0:02:27.9]} 12. Ne3 {[%clk 0:02:56.7]} 12... Nc6
{[%clk 0:02:10.1]} 13. Nxc6 {[%clk 0:02:46.5]} 13... bxc6 {[%clk 0:02:10.6]} 14.
Bxc6 {[%clk 0:02:46.8]} 14... Rb8 {[%clk 0:02:11.1]} 15. Nxc4 {[%clk 0:02:46.4]}
15... Ba6 {[%clk 0:02:10.6]} 16. b3 {[%clk 0:02:41.7]} 16... Rfc8 {[%clk
0:02:11]} 17. Na5 {[%clk 0:02:14.2]} 17... Nd5 {[%clk 0:01:11.4]} 18. O-O {[%clk
0:01:54.3]} 18... Bxe2 {[%clk 0:01:10]} 19. Rfe1 {[%clk 0:01:52.2]} 19... Bf3
{[%clk 0:01:10.5]} 20. Rac1 {[%clk 0:01:46.9]} 20... h6 {[%clk 0:00:37.3]} 21.
Bd7 {[%clk 0:01:37.3]} 21... Rxc1 {[%clk 0:00:35.7]} 22. Rxc1 {[%clk 0:01:38.2]}
22... Nb4 {[%clk 0:00:31.9]} 23. a3 {[%clk 0:01:16.9]} 23... Nd5 {[%clk
0:00:26.1]} 24. b4 {[%clk 0:01:12.8]} 24... Nb6 {[%clk 0:00:23.2]} 25. Bc6
{[%clk 0:01:06.7]} 25... Bxc6 {[%clk 0:00:08.4]} 26. Nxc6 {[%clk 0:01:07.6]}
26... Rb7 {[%clk 0:00:07.5]} 27. Be3 {[%clk 0:01:04.5]} 27... Nd5 {[%clk
0:00:06.8]} 28. Bxa7 {[%clk 0:01:03.9]} 28... Bf6 {[%clk 0:00:03.7]} 29. Bd4
{[%clk 0:01:00.1]} 29... Bxd4 {[%clk 0:00:02.7]} 30. Nxd4 {[%clk 0:01:01]} 30...
Ra7 {[%clk 0:00:02.7]} 31. Nb5 {[%clk 0:00:55.6]} 31... Ra4 {[%clk 0:00:03.2]}
32. h4 {[%clk 0:00:45.8]} 32... Kf8 {[%clk 0:00:03.5]} 33. h5 {[%clk 0:00:44.2]}
33... Ke7 {[%clk 0:00:04]} 34. Rc8 {[%clk 0:00:43.8]} 34... Nf6 {[%clk
0:00:03.1]} 35. Rc7+ {[%clk 0:00:41.8]} 35... Kf8 {[%clk 0:00:02.7]} 36. Ra7
{[%clk 0:00:34.4]} 1-0

[Event "Late-Titled-Tuesday-Blitz-December-26-2023"]
[Site "Chess.com"]
[Date "2023.12.26"]
[Round "2"]
[White "mariofs"]
[Black "ElenGajger"]
[Result "1-0"]
[WhiteElo "2191"]
[BlackElo "2449"]
[TimeControl "180+1"]
[EndTime "14:17:25 PST"]
[Termination "mariofs won on time"]

1. d4 {[%clk 0:03:00.5]} 1... Nf6 {[%clk 0:02:10.1]} 2. Nc3 {[%clk 0:02:59.4]}
2... d5 {[%clk 0:02:09.7]} 3. Bf4 {[%clk 0:02:58.6]} 3... g6 {[%clk 0:02:09.6]}
4. e3 {[%clk 0:02:58.5]} 4... Bg7 {[%clk 0:02:09.6]} 5. h4 {[%clk 0:02:58.5]}
5... O-O {[%clk 0:02:09.5]} 6. h5 {[%clk 0:02:57.5]} 6... c5 {[%clk 0:02:09.1]}
7. hxg6 {[%clk 0:02:42.5]} 7... hxg6 {[%clk 0:02:10]} 8. Nf3 {[%clk 0:02:41.5]}
8... Bg4 {[%clk 0:02:08.2]} 9. Be2 {[%clk 0:02:41.3]} 9... Nc6 {[%clk
0:02:07.2]} 10. dxc5 {[%clk 0:02:25.2]} 10... Qa5 {[%clk 0:02:04]} 11. Qd2
{[%clk 0:01:58.5]} 11... Qxc5 {[%clk 0:02:00.4]} 12. O-O-O {[%clk 0:01:57.1]}
12... Rfd8 {[%clk 0:01:56.5]} 13. Nd4 {[%clk 0:01:14.9]} 13... Bxe2 {[%clk
0:01:50.9]} 14. Qxe2 {[%clk 0:01:06.7]} 14... Rac8 {[%clk 0:01:50.3]} 15. Kb1
{[%clk 0:01:02.2]} 15... a6 {[%clk 0:01:41.2]} 16. f3 {[%clk 0:00:58.1]} 16...
b5 {[%clk 0:01:40.5]} 17. g4 {[%clk 0:00:49.7]} 17... b4 {[%clk 0:01:30.2]} 18.
Na4 {[%clk 0:00:49.9]} 18... Qa5 {[%clk 0:01:30.1]} 19. b3 {[%clk 0:00:44.7]}
19... Nd7 {[%clk 0:01:08.7]} 20. Bh6 {[%clk 0:00:42.4]} 20... Bh8 {[%clk
0:01:00.9]} 21. Qh2 {[%clk 0:00:37]} 21... Nxd4 {[%clk 0:00:32]} 22. Bf8 {[%clk
0:00:28.4]} 22... Bf6 {[%clk 0:00:25.7]} 23. g5 {[%clk 0:00:20.5]} 23... Rxc2
{[%clk 0:00:04.3]} 24. Qh7+ {[%clk 0:00:20.3]} 24... Kxf8 {[%clk 0:00:04.4]} 25.
gxf6 {[%clk 0:00:21.2]} 25... exf6 {[%clk 0:00:04.3]} 26. exd4 {[%clk
0:00:19.8]} 26... Rf2 {[%clk 0:00:02.9]} 27. Rde1 {[%clk 0:00:16.2]} 1-0